Workbook

Sheet Inputs
A1: Finding the Efficient Frontier
A4: Today's date | B4: =TODAY() -> 2024-10-04
A5: Start date | B5: =DATE(YEAR(B4)-5, MONTH(B4)-1,1) -> 2019-09-01
A6: End date | B6: =DATE(YEAR(B4), MONTH(B4)-1, 28) -> 2024-09-28
E11: Risk-free Rate | G11: 0.03
E12: Market Risk Premium (Rm-Rf) | G12: 0.057
B14: Ticker Symbols
B15: 1 | C15: NFLX
B16: 2 | C16: JPM
B17: 3 | C17: KO
B18: 4 | C18: GRMN
B19: 5 | C19: HD
B20: 6 | C20: LUV
B21: 7 | C21: LLY
B22: 8 | C22: XOM
H25: Enter Value for x
A41: Ignore everything below this point on this worksheet
A47: If selected to be restricted, weights for these individual ETFs must be 0.2 or less
A48: Financial (XLF)
A49: Health (XLV)
A50: Energy (IYE)
A51: Technology (VGT)
A52: Utilities (IDU)
A53: China (FXI)
A54: Japan (NKY)
A55: India (INP)
A56: Latin America (EWZ)
A57: Europe (EWG)
A58: Emerging Markets (VWO)
A59: Junk Bonds (HYG)
A60: Domestic Real Estate (VNQ)
A61: Global Real Estate (IFGL)
A62: Precious Metals (IAU)
A63: Natural Resources (VAW)
A64: Agricultural Commodities (RJA)
... 21 more rows

Sheet Returns
B1: PRICES | K1: RETURNS | T1: Rf | U1: =Inputs!$G$11 -> 0.03
A2: Date | B2: =Inputs!C15 -> NFLX | C2: =Inputs!C16 -> JPM | D2: =Inputs!C17 -> KO | E2: =Inputs!C18 -> GRMN | F2: =Inputs!C19 -> HD | G2: =Inputs!C20 -> LUV | H2: =Inputs!C21 -> LLY | I2: =Inputs!C22 -> XOM | J2: ivv | K2: =B2 -> NFLX | L2: =C2 -> JPM | M2: =D2 -> KO | N2: GRMN | O2: HD | P2: LUV | Q2: LLY | R2: XOM | S2: =J2 -> ivv | T2: Rm-Rf | U2: =Inputs!$G$12 -> 0.057
A3: =A71 -> 2019-09-01 | B3: =_xlfn.STOCKHISTORY(B2,$A$71,$A$72,2,0,1) -> 267.62 | C3: =_xlfn.STOCKHISTORY(C2,$A$71,$A$72,2,0,1) -> 117.69 | D3: =_xlfn.STOCKHISTORY(D2,$A$71,$A$72,2,0,1) -> 54.44 | E3: =_xlfn.STOCKHISTORY(E2,$A$71,$A$72,2,0,1) -> 84.69 | F3: =_xlfn.STOCKHISTORY(F2,$A$71,$A$72,2,0,1) -> 232.02 | G3: =_xlfn.STOCKHISTORY(G2,$A$71,$A$72,2,0,1) -> 54.01 | H3: =_xlfn.STOCKHISTORY(H2,$A$71,$A$72,2,0,1) -> 111.83 | I3: =_xlfn.STOCKHISTORY(I2,$A$71,$A$72,2,0,1) -> 70.61 | J3: =_xlfn.STOCKHISTORY(J2,$A$71,$A$72,2,0,1) -> 298.52 | K3: _1 | L3: _2 | M3: _3 | N3: _4 | O3: _5 | P3: _6 | Q3: _7 | R3: _8
A4: =EDATE(A3,1) -> 2019-10-01 | B4: 287.41 | C4: 124.92 | D4: 54.43 | E4: 93.75 | F4: 234.58 | G4: 56.13 | H4: 113.95 | I4: 67.57 | J4: 304.97 | K4: =LN(B4/B3) -> 0.07134170387 | L4: =LN(C4/C3) -> 0.05961948353 | M4: =LN(D4/D3) -> -0.0001837053372 | N4: =LN(E4/E3) -> 0.1016341339 | O4: =LN(F4/F3) -> 0.01097310625 | P4: =LN(G4/G3) -> 0.03850121435 | Q4: =LN(H4/H3) -> 0.01877989465 | R4: =LN(I4/I3) -> -0.04400767996 | S4: =LN(J4/J3) -> 0.02137647885
A5: =EDATE(A4,1) -> 2019-11-01 | B5: 314.66 | C5: 131.76 | D5: 53.4 | E5: 97.69 | F5: 220.51 | G5: 57.64 | H5: 117.35 | I5: 68.13 | J5: 316.06 | K5: =LN(B5/B4) -> 0.09058292306 | L5: 0.05330855345 | M5: -0.01910472648 | N5: 0.04116753481 | O5: -0.06185363576 | P5: 0.02654634218 | Q5: 0.02940116661 | R5: 0.008253547221 | S5: 0.03571865787
A6: 2019-12-01 | B6: 323.57 | C6: 139.4 | D6: 55.35 | E6: 97.56 | F6: 218.38 | G6: 53.98 | H6: 131.43 | I6: 69.78 | J6: 323.24 | K6: 0.02792278303 | L6: 0.05636541246 | M6: 0.03586591319 | N6: -0.001331626317 | O6: -0.009706380747 | P6: -0.06560316354 | Q6: 0.1133134682 | R6: 0.02392979097 | S6: 0.02246301238
A7: 2020-01-01 | B7: 345.09 | C7: 132.36 | D7: 58.4 | E7: 96.95 | F7: 228.1 | G7: 54.98 | H7: 139.64 | I7: 62.12 | J7: 323.24 | K7: 0.06438977873 | L7: -0.05182201527 | M7: 0.05363923068 | N7: -0.006272191659 | O7: 0.0435474647 | P7: 0.01835587515 | Q7: 0.06059329174 | R7: -0.1162794375 | S7: 0
A8: 2020-02-01 | B8: 369.03 | C8: 116.11 | D8: 53.49 | E8: 88.39 | F8: 217.84 | G8: 46.19 | H8: 126.13 | I8: 51.44 | J8: 295.91 | K8: 0.06707268897 | L8: -0.1309874654 | M8: -0.08782116929 | N8: -0.09243654062 | O8: -0.04602328092 | P8: -0.1742061583 | Q8: -0.1017545611 | R8: -0.1886519184 | S8: -0.08833972733
A9: 2020-03-01 | B9: 375.5 | C9: 90.03 | D9: 44.25 | E9: 74.96 | F9: 186.71 | G9: 35.61 | H9: 138.72 | I9: 37.97 | J9: 258.4 | K9: 0.01738052966 | L9: -0.2543950695 | M9: -0.1896393491 | N9: -0.1648042031 | O9: -0.1542042374 | P9: -0.2601368272 | Q9: 0.09514439193 | R9: -0.3036197057 | S9: -0.1355465821
A10: 2020-04-01 | B10: 419.85 | C10: 95.76 | D10: 45.89 | E10: 81.16 | F10: 219.83 | G10: 31.25 | H10: 154.64 | I10: 46.47 | J10: 291.16 | K10: 0.1116390334 | L10: 0.06170211313 | M10: 0.03639185695 | N10: 0.07946787703 | O10: 0.1632979094 | P10: -0.1306071211 | Q10: 0.1086423219 | R10: 0.2020105689 | S10: 0.1193641723
A11: 2020-05-01 | B11: 419.73 | C11: 97.31 | D11: 46.68 | E11: 90.17 | F11: 248.48 | G11: 32.1 | H11: 152.95 | I11: 45.47 | J11: 305.18 | K11: -0.0002858572163 | L11: 0.01605669758 | M11: 0.01706857901 | N11: 0.1052742626 | O11: 0.122507839 | P11: 0.02683665395 | Q11: -0.0109887643 | R11: -0.02175417526 | S11: 0.04702882221
A12: 2020-06-01 | B12: 455.04 | C12: 94.06 | D12: 44.68 | E12: 97.5 | F12: 250.51 | G12: 34.18 | H12: 164.18 | I12: 44.72 | J12: 309.69 | K12: 0.08077367976 | L12: -0.03396888232 | M12: -0.04378983322 | N12: 0.07815560049 | O12: 0.008136480487 | P12: 0.06278464755 | Q12: 0.07085231632 | R12: -0.01663193899 | S12: 0.01467003068
A13: 2020-07-01 | B13: 488.88 | C13: 96.64 | D13: 47.24 | E13: 98.59 | F13: 265.49 | G13: 30.89 | H13: 150.29 | I13: 42.08 | J13: 327.82 | K13: 0.07173173341 | L13: 0.02705985767 | M13: 0.05571501713 | N13: 0.01111745858 | O13: 0.0580783353 | P13: -0.1012081708 | Q13: -0.08839662597 | R13: -0.06084826042 | S13: 0.05689288012
A14: 2020-08-01 | B14: 529.56 | C14: 100.19 | D14: 49.53 | E14: 103.61 | F14: 285.04 | G14: 37.58 | H14: 148.39 | I14: 39.94 | J14: 350.77 | K14: 0.07992941248 | L14: 0.03607564908 | M14: 0.04733755527 | N14: 0.04966401368 | O14: 0.07105234611 | P14: 0.1960394871 | Q14: -0.01272281793 | R14: -0.05219424044 | S14: 0.06766606077
A15: 2020-09-01 | B15: 500.03 | C15: 96.27 | D15: 49.37 | E15: 94.86 | F15: 277.71 | G15: 37.5 | H15: 148.02 | I15: 34.33 | J15: 336.06 | K15: -0.05737837645 | L15: -0.03991163948 | M15: -0.003235594329 | N15: -0.08823172981 | O15: -0.02605211755 | P15: -0.002131061009 | Q15: -0.002496543249 | R15: -0.1513587205 | S15: -0.04284102258
A16: 2020-10-01 | B16: 475.74 | C16: 98.04 | D16: 48.06 | E16: 104.02 | F16: 266.71 | G16: 39.53 | H16: 130.46 | I16: 32.62 | J16: 327.62 | K16: -0.04979661011 | L16: 0.01821881487 | M16: -0.02689272196 | N16: 0.0921810679 | O16: -0.04041547795 | P16: 0.05271894433 | Q16: -0.1262807334 | R16: -0.05109401028 | S16: -0.02543531527
A17: 2020-11-01 | B17: 490.7 | C17: 117.88 | D17: 51.6 | E17: 116.76 | F17: 277.41 | G17: 46.34 | H17: 145.65 | I17: 38.13 | J17: 363.32 | K17: 0.03096145658 | L17: 0.1842915992 | M17: 0.07107144218 | N17: 0.1155373576 | O17: 0.03933463046 | P17: 0.1589456417 | Q17: 0.110139817 | R17: 0.1560757767 | S17: 0.1034295885
A18: 2020-12-01 | B18: 540.73 | C18: 127.07 | D18: 54.84 | E18: 119.66 | F18: 265.62 | G18: 46.61 | H18: 168.84 | I18: 41.22 | J18: 375.39 | K18: 0.09708713539 | L18: 0.07507095785 | M18: 0.06089818221 | N18: 0.02453384198 | O18: -0.04342984029 | P18: 0.00580959138 | Q18: 0.1477450375 | R18: 0.07792220159 | S18: 0.03268149691
A19: 2021-01-01 | B19: 532.39 | C19: 128.67 | D19: 48.15 | E19: 114.86 | F19: 270.82 | G19: 43.94 | H19: 207.97 | I19: 44.84 | J19: 371.52 | K19: -0.01554377501 | L19: 0.01251287148 | M19: -0.1300987164 | N19: -0.04094039253 | O19: 0.01938767758 | P19: -0.05899004343 | Q19: 0.2084423176 | R19: 0.08417702274 | S19: -0.01036278704
A20: 2021-02-01 | B20: 538.85 | C20: 147.17 | D20: 48.99 | E20: 124.02 | F20: 258.34 | G20: 58.13 | H20: 204.89 | I20: 54.37 | J20: 381.77 | K20: 0.01206093557 | L20: 0.134337394 | M20: 0.01729505741 | N20: 0.07672884749 | O20: -0.04717784675 | P20: 0.2798568148 | Q20: -0.01492058877 | R20: 0.192711933 | S20: 0.02721563452
A21: 2021-03-01 | B21: 521.66 | C21: 152.23 | D21: 52.71 | E21: 131.85 | F21: 305.25 | G21: 61.06 | H21: 186.82 | I21: 55.83 | J21: 397.82 | K21: -0.03242120437 | L21: 0.0338041539 | M21: 0.07318899522 | N21: 0.06122206988 | O21: 0.1668545662 | P21: 0.04917510559 | Q21: -0.09232766331 | R21: 0.02649882816 | S21: 0.04118130864
A22: 2021-04-01 | B22: 513.47 | C22: 153.81 | D22: 53.98 | E22: 137.24 | F22: 323.67 | G22: 62.78 | H22: 182.77 | I22: 57.24 | J22: 418.88 | K22: -0.0158244296 | L22: 0.01032553939 | M22: 0.02380841672 | N22: 0.04006630519 | O22: 0.05859336524 | P22: 0.02777956411 | Q22: -0.02191705468 | R22: 0.02494159537 | S22: 0.05158484104
A23: 2021-05-01 | B23: 502.81 | C23: 164.24 | D23: 55.29 | E23: 142.24 | F23: 318.91 | G23: 61.46 | H23: 199.74 | I23: 58.37 | J23: 421.65 | K23: -0.02097923993 | L23: 0.06561069825 | M23: 0.02397845276 | N23: 0.03578455378 | O23: -0.01481554691 | P23: -0.02124999471 | Q23: 0.08878798905 | R23: 0.01954910453 | S23: 0.006591103299
A24: 2021-06-01 | B24: 528.21 | C24: 155.54 | D24: 54.11 | E24: 144.64 | F24: 318.89 | G24: 53.09 | H24: 229.52 | I24: 63.08 | J24: 429.92 | K24: 0.04928156676 | L24: -0.05442583944 | M24: -0.0215730487 | N24: 0.01673212488 | O24: -6.271558484e-05 | P24: -0.1463979701 | Q24: 0.1389736509 | R24: 0.07760170288 | S24: 0.01942355885
A25: 2021-07-01 | B25: 517.57 | C25: 151.78 | D25: 57.03 | E25: 157.2 | F25: 328.19 | G25: 50.52 | H25: 243.5 | I25: 57.57 | J25: 440.4 | K25: -0.02034915021 | L25: -0.02447082929 | M25: 0.05255843351 | N25: 0.08327098335 | O25: 0.02874649323 | P25: -0.04961928911 | Q25: 0.05912677085 | R25: -0.09140216341 | S25: 0.02408425998
A26: 2021-08-01 | B26: 569.19 | C26: 159.95 | D26: 56.31 | E26: 174.43 | F26: 326.18 | G26: 49.78 | H26: 258.29 | I26: 54.52 | J26: 453.71 | K26: 0.09506951585 | L26: 0.05242916242 | M26: -0.0127053059 | N26: 0.104004635 | O26: -0.006143332737 | P26: -0.01475600054 | Q26: 0.05896604216 | R26: -0.05443399186 | S26: 0.02977482257
A27: 2021-09-01 | B27: 610.34 | C27: 163.69 | D27: 52.47 | E27: 155.46 | F27: 328.26 | G27: 51.43 | H27: 231.05 | I27: 58.82 | J27: 430.82 | K27: 0.0698018814 | L27: 0.02311312876 | M27: -0.07063056157 | N27: -0.1151350512 | O27: 0.006356601075 | P27: 0.03260836285 | Q27: -0.1114488474 | R27: 0.0759143263 | S27: -0.05176785796
A28: 2021-10-01 | B28: 690.31 | C28: 169.89 | D28: 56.37 | E28: 143.6 | F28: 371.74 | G28: 47.28 | H28: 254.76 | I28: 64.47 | J28: 460.99 | K28: 0.1231245931 | L28: 0.03717677364 | M28: 0.07169552439 | N28: -0.07935680719 | O28: 0.1243887079 | P28: -0.08413428669 | Q28: 0.09768778819 | R28: 0.0917180662 | S28: 0.06768598133
A29: 2021-11-01 | B29: 641.9 | C29: 158.83 | D29: 52.45 | E29: 133.54 | F29: 400.61 | G29: 44.4 | H29: 248.04 | I29: 59.84 | J29: 457.63 | K29: -0.07270824374 | L29: -0.06731672095 | M29: -0.07207676725 | N29: -0.07263059818 | O29: 0.0747937003 | P29: -0.06284790366 | Q29: -0.02673190202 | R29: -0.07452566566 | S29: -0.00731535343
A30: 2021-12-01 | B30: 602.44 | C30: 158.35 | D30: 59.21 | E30: 136.17 | F30: 415.01 | G30: 42.84 | H30: 276.22 | I30: 61.19 | J30: 476.99 | K30: -0.06344445297 | L30: -0.003026674862 | M30: 0.1212301117 | N30: 0.01950304671 | O30: 0.03531423085 | P30: -0.03576722386 | Q30: 0.1076076262 | R30: 0.02230944381 | S30: 0.04143452895
A31: 2022-01-01 | B31: 427.14 | C31: 148.6 | D31: 61.01 | E31: 124.42 | F31: 366.98 | G31: 44.76 | H31: 245.39 | I31: 75.96 | J31: 451.77 | K31: -0.343876247 | L31: -0.0635496407 | M31: 0.02994733862 | N31: -0.09024116605 | O31: -0.1229952657 | P31: 0.04384263786 | Q31: -0.118348868 | R31: 0.2162231085 | S31: -0.05432232554
A32: 2022-02-01 | B32: 394.52 | C32: 141.8 | D32: 62.24 | E32: 110.44 | F32: 315.83 | G32: 43.8 | H32: 249.95 | I32: 78.42 | J32: 438.72 | K32: -0.07944199226 | L32: -0.04684051819 | M32: 0.01996009471 | N32: -0.119190552 | O32: -0.1501032565 | P32: -0.02168106606 | Q32: 0.01841211621 | R32: 0.03187211092 | S32: -0.02931180439
A33: 2022-03-01 | B33: 374.59 | C33: 136.32 | D33: 62 | E33: 118.61 | F33: 299.33 | G33: 45.8 | H33: 286.37 | I33: 82.59 | J33: 453.69 | K33: -0.05183774157 | L33: -0.03941255102 | M33: -0.003863494825 | N33: 0.07136841298 | O33: -0.05365745043 | P33: 0.04465027374 | Q33: 0.1360237831 | R33: 0.05180961096 | S33: 0.03355274906
A34: 2022-04-01 | B34: 190.36 | C34: 119.36 | D34: 64.61 | E34: 109.74 | F34: 300.4 | G34: 46.72 | H34: 292.13 | I34: 85.25 | J34: 413.56 | K34: -0.6769150783 | L34: -0.1328609266 | M34: 0.04123481252 | N34: -0.07772686841 | O34: 0.003568276175 | P34: 0.0198882474 | Q34: 0.01991422768 | R34: 0.03169950834 | S34: -0.09261153871
A35: 2022-05-01 | B35: 197.44 | C35: 132.23 | D35: 63.38 | E35: 105.62 | F35: 302.75 | G35: 45.86 | H35: 313.44 | I35: 96 | J35: 414.87 | K35: 0.03651772446 | L35: 0.1023986941 | M35: -0.01922084331 | N35: -0.03826618435 | O35: 0.007792462543 | P35: -0.01857906109 | Q35: 0.07040904552 | R35: 0.1187600753 | S35: 0.003162611426
A36: 2022-06-01 | B36: 174.87 | C36: 112.61 | D36: 62.91 | E36: 98.25 | F36: 274.27 | G36: 36.12 | H36: 324.23 | I36: 85.64 | J36: 379.15 | K36: -0.1213919 | L36: -0.1606123089 | M36: -0.007443220681 | N36: -0.07233249653 | O36: -0.09879435977 | P36: -0.2387465489 | Q36: 0.0338451863 | R36: -0.1141957277 | S36: -0.090033313
A37: 2022-07-01 | B37: 224.9 | C37: 115.36 | D37: 64.17 | E37: 97.62 | F37: 300.94 | G37: 38.12 | H37: 329.69 | I37: 96.93 | J37: 414.28 | K37: 0.2516130182 | L37: 0.02412715183 | M37: 0.01983067818 | N37: -0.00643286029 | O37: 0.09279788667 | P37: 0.05389235024 | Q37: 0.01669967852 | R37: 0.1238366048 | S37: 0.08861016857
A38: 2022-08-01 | B38: 223.56 | C38: 113.73 | D38: 61.71 | E38: 88.49 | F38: 288.42 | G38: 36.7 | H38: 301.23 | I38: 95.59 | J38: 397.18 | K38: -0.005976024564 | L38: -0.01423045534 | M38: -0.03908981943 | N38: -0.09819283918 | O38: -0.0424931582 | P38: -0.03796232373 | Q38: -0.09027872645 | R38: -0.01392085643 | S38: -0.04215249528
A39: 2022-09-01 | B39: 235.44 | C39: 104.5 | D39: 56.02 | E39: 80.31 | F39: 275.94 | G39: 30.84 | H39: 323.35 | I39: 87.31 | J39: 358.65 | K39: 0.05177626952 | L39: -0.08464014679 | M39: -0.0967372225 | N39: -0.09699540508 | O39: -0.04423430035 | P39: -0.1739642064 | Q39: 0.07086123533 | R39: -0.09060320825 | S39: -0.1020425959
A40: 2022-10-01 | B40: 291.88 | C40: 125.88 | D40: 59.85 | E40: 88.04 | F40: 296.13 | G40: 36.35 | H40: 362.09 | I40: 110.81 | J40: 387.79 | K40: 0.214886655 | L40: 0.1861420008 | M40: 0.06613266217 | N40: 0.09189711046 | O40: 0.07061509632 | P40: 0.1643816553 | Q40: 0.1131574718 | R40: 0.2383520191 | S40: 0.07811697342
A41: 2022-11-01 | B41: 305.53 | C41: 138.18 | D41: 63.61 | E41: 92.99 | F41: 323.99 | G41: 39.91 | H41: 371.08 | I41: 111.34 | J41: 409.32 | K41: 0.04570521457 | L41: 0.09322811086 | M41: 0.06092925869 | N41: 0.05470070383 | O41: 0.08991410402 | P41: 0.09343271508 | Q41: 0.02452487308 | R41: 0.004771559807 | S41: 0.05403329023
A42: 2022-12-01 | B42: 294.88 | C42: 134.1 | D42: 63.61 | E42: 92.29 | F42: 315.86 | G42: 33.67 | H42: 365.84 | I42: 110.3 | J42: 384.21 | K42: -0.03547947954 | L42: -0.02997139277 | M42: 0 | N42: -0.007556167213 | O42: -0.02541357368 | P42: -0.1700196859 | Q42: -0.01422159344 | R42: -0.009384656496 | S42: -0.06330796811
A43: 2023-01-01 | B43: 353.86 | C43: 139.96 | D43: 61.32 | E43: 98.88 | F43: 324.17 | G43: 35.77 | H43: 344.15 | I43: 116.01 | J43: 408.31 | K43: 0.1823328608 | L43: 0.04277087721 | M43: -0.03666463669 | N43: 0.06897120043 | O43: 0.02596899211 | P43: 0.0605023201 | Q43: -0.06111847051 | R43: 0.05047246803 | S43: 0.06083741171
A44: 2023-02-01 | B44: 322.13 | C44: 143.35 | D44: 59.51 | E44: 98.13 | F44: 296.54 | G44: 33.58 | H44: 311.22 | I44: 109.91 | J44: 397.97 | K44: -0.09394616391 | L44: 0.02393252483 | M44: -0.02996168835 | N44: -0.007613863491 | O44: -0.08908595296 | P44: -0.06317890162 | Q44: -0.1005775513 | R44: -0.05401454521 | S44: -0.02565006426
A45: 2023-03-01 | B45: 345.48 | C45: 130.31 | D45: 62.03 | E45: 100.92 | F45: 295.12 | G45: 32.54 | H45: 343.42 | I45: 109.66 | J45: 411.08 | K45: 0.06997956364 | L45: -0.09537296517 | M45: 0.04147377333 | N45: 0.02803499355 | O45: -0.004800063301 | P45: -0.03146054986 | Q45: 0.09845413029 | R45: -0.002277179105 | S45: 0.0324112172
A46: 2023-04-01 | B46: 329.93 | C46: 138.24 | D46: 64.15 | E46: 98.17 | F46: 300.54 | G46: 30.29 | H46: 395.86 | I46: 118.34 | J46: 417.66 | K46: -0.04605424366 | L46: 0.0590750779 | M46: 0.03360595208 | N46: -0.02762745407 | O46: 0.01819880331 | P46: -0.07165247675 | Q46: 0.1421064255 | R46: 0.07617716727 | S46: 0.01587986165
A47: 2023-05-01 | B47: 395.23 | C47: 135.71 | D47: 59.66 | E47: 103.15 | F47: 283.45 | G47: 29.87 | H47: 429.46 | I47: 102.18 | J47: 419.43 | K47: 0.1805873632 | L47: -0.01847104896 | M47: -0.07256231198 | N47: 0.04948356981 | O47: -0.05854511583 | P47: -0.01396299281 | Q47: 0.08146799215 | R47: -0.1468258733 | S47: 0.004228942259
A48: 2023-06-01 | B48: 440.49 | C48: 145.44 | D48: 60.22 | E48: 104.29 | F48: 310.64 | G48: 36.21 | H48: 468.98 | I48: 107.25 | J48: 445.71 | K48: 0.1084198697 | L48: 0.06924337434 | M48: 0.009342743967 | N48: 0.01099124062 | O48: 0.09159894465 | P48: 0.1924806915 | Q48: 0.08803151807 | R48: 0.04842659391 | S48: 0.06077186965
A49: 2023-07-01 | B49: 438.97 | C49: 157.96 | D49: 61.93 | E49: 105.89 | F49: 333.84 | G49: 34.16 | H49: 454.55 | I49: 107.24 | J49: 460.18 | K49: -0.003456670033 | L49: 0.08257820599 | M49: 0.0280001919 | N49: 0.01522533931 | O49: 0.07202715086 | P49: -0.05827995486 | Q49: -0.03125220505 | R49: -9.324444037e-05 | S49: 0.03194920097
A50: 2023-08-01 | B50: 433.68 | C50: 146.33 | D50: 59.83 | E50: 106.02 | F50: 330.3 | G50: 31.6 | H50: 554.2 | I50: 111.19 | J50: 452.69 | K50: -0.01212413866 | L50: -0.07647749131 | M50: -0.03449750755 | N50: 0.001226936117 | O50: -0.01066050389 | P50: -0.07789824833 | Q50: 0.1982177139 | R50: 0.03617113635 | S50: -0.01641015278
A51: 2023-09-01 | B51: 377.6 | C51: 145.02 | D51: 55.98 | E51: 105.2 | F51: 302.16 | G51: 27.07 | H51: 537.13 | I51: 117.58 | J51: 429.43 | K51: -0.1384715007 | L51: -0.008992681161 | M51: -0.06651272331 | N51: -0.007764455256 | O51: -0.08904465399 | P51: -0.154731017 | Q51: -0.03128548156 | R51: 0.05587850326 | S51: -0.05274881658
A52: 2023-10-01 | B52: 411.69 | C52: 139.06 | D52: 56.49 | E52: 102.53 | F52: 284.69 | G52: 22.23 | H52: 553.93 | I52: 105.85 | J52: 419.94 | K52: 0.08643520468 | L52: -0.04196616927 | M52: 0.00906914725 | N52: -0.02570786162 | O52: -0.05955580943 | P52: -0.1969833757 | Q52: 0.0307981741 | R52: -0.1050959554 | S52: -0.022346904
A53: 2023-11-01 | B53: 473.97 | C53: 156.08 | D53: 58.44 | E53: 122.24 | F53: 313.49 | G53: 25.57 | H53: 591.04 | I53: 102.74 | J53: 458.42 | K53: 0.1408733896 | L53: 0.1154632016 | M53: 0.03393695555 | N53: 0.1758308867 | O53: 0.09636659266 | P53: 0.1399770613 | Q53: 0.06484537204 | R53: -0.02982147254 | S53: 0.08767395054
A54: 2023-12-01 | B54: 486.88 | C54: 170.1 | D54: 58.93 | E54: 128.54 | F54: 346.55 | G54: 28.88 | H54: 582.92 | I54: 99.98 | J54: 477.63 | K54: 0.0268736576 | L54: 0.08601780309 | M54: 0.008349711967 | N54: 0.05025381452 | O54: 0.1002596467 | P54: 0.1217295247 | Q54: -0.01383374135 | R54: -0.02723135905 | S54: 0.04105057971
A55: 2024-01-01 | B55: 564.11 | C55: 174.36 | D55: 59.49 | E55: 119.49 | F55: 352.96 | G55: 29.89 | H55: 645.61 | I55: 102.81 | J55: 485.2 | K55: 0.1472315818 | L55: 0.02473562797 | M55: 0.00945793235 | N55: -0.07300745408 | O55: 0.0183276277 | P55: 0.03437466227 | Q55: 0.1021456506 | R55: 0.02791245857 | S55: 0.01572480289
A56: 2024-02-01 | B56: 602.92 | C56: 186.06 | D56: 60.02 | E56: 137.35 | F56: 380.61 | G56: 34.27 | H56: 753.68 | I56: 104.52 | J56: 510.45 | K56: 0.06653525 | L56: 0.06494707497 | M56: 0.008869608812 | N56: 0.1392997267 | O56: 0.07542049276 | P56: 0.1367463596 | Q56: 0.1547722684 | R56: 0.0164958161 | S56: 0.05073151255
A57: 2024-03-01 | B57: 607.33 | C57: 200.3 | D57: 61.18 | E57: 148.87 | F57: 383.6 | G57: 29.19 | H57: 777.96 | I57: 116.24 | J57: 525.73 | K57: 0.00728778272 | L57: 0.07374704033 | M57: 0.01914249871 | N57: 0.08054102935 | O57: 0.007825114189 | P57: -0.160444151 | Q57: 0.03170723423 | R57: 0.1062785786 | S57: 0.02949508335
A58: 2024-04-01 | B58: 550.64 | C58: 191.74 | D58: 61.77 | E58: 144.47 | F58: 334.22 | G58: 25.94 | H58: 781.1 | I58: 118.27 | J58: 504.44 | K58: -0.09799106257 | L58: -0.04367595502 | M58: 0.009597470985 | N58: -0.03000156835 | O58: -0.1378008842 | P58: -0.118040006 | Q58: 0.004028073641 | R58: 0.017313127 | S58: -0.04133886988
A59: 2024-05-01 | B59: 641.62 | C59: 202.63 | D59: 62.93 | E59: 163.85 | F59: 334.87 | G59: 26.84 | H59: 820.34 | I59: 117.26 | J59: 529.96 | K59: 0.15291499 | L59: 0.05524136823 | M59: 0.01860518783 | N59: 0.1258795016 | O59: 0.001942938034 | P59: 0.03410713322 | Q59: 0.04901570585 | R59: -0.008576454727 | S59: 0.04935262891
A60: 2024-06-01 | B60: 674.88 | C60: 202.26 | D60: 63.65 | E60: 162.92 | F60: 344.24 | G60: 28.61 | H60: 905.38 | I60: 115.12 | J60: 547.23 | K60: 0.05053866915 | L60: -0.001827657403 | M60: 0.01137632746 | N60: -0.005692092365 | O60: 0.02759669172 | P60: 0.06386299496 | Q60: 0.09863585661 | R60: -0.01841862896 | S60: 0.03206765737
A61: 2024-07-01 | B61: 628.35 | C61: 212.8 | D61: 66.74 | E61: 171.25 | F61: 368.16 | G61: 26.94 | H61: 804.27 | I61: 118.59 | J61: 553.32 | K61: -0.07143756123 | L61: 0.05079875899 | M61: 0.04740514832 | N61: 0.04986519436 | O61: 0.06717853776 | P61: -0.06014413608 | Q61: -0.1184197114 | R61: 0.0296971034 | S61: 0.01106730664
A62: 2024-08-01 | B62: 701.35 | C62: 224.8 | D62: 72.47 | E62: 183.29 | F62: 368.5 | G62: 28.92 | H62: 960.02 | I62: 117.94 | J62: 566.75 | K62: 0.1099097131 | L62: 0.05485836055 | M62: 0.0823682098 | N62: 0.06794512084 | O62: 0.0009230853423 | P62: 0.07092122631 | Q62: 0.1770190839 | R62: -0.005496145404 | S62: 0.02398179338
A63: 2024-09-01 | B63: 709.27 | C63: 210.86 | D63: 71.86 | E63: 176.03 | F63: 405.2 | G63: 29.63 | H63: 885.94 | I63: 117.22 | J63: 576.82 | K63: =LN(B63/B62) -> 0.01122922293 | L63: =LN(C63/C62) -> -0.06401671187 | M63: -0.008452901436 | N63: -0.04041516293 | O63: 0.09494006075 | P63: 0.02425396429 | Q63: -0.08030488936 | R63: -0.006123509524 | S63: 0.01761197005
A65: Monthly Standard Deviation | K65: =STDEV(K4:K63) -> 0.1323923599 | L65: =STDEV(L4:L63) -> 0.07897191012 | M65: 0.05423993673 | N65: 0.07404165656 | O65: 0.07278966758 | P65: 0.1099543245 | Q65: 0.08558370664 | R65: 0.096776684 | S65: 0.05271174286
A66: Annualized Standard Deviation | K66: =K65*SQRT(12) -> 0.4586205877 | L66: =L65*SQRT(12) -> 0.2735667214 | M66: 0.1878926524 | N66: 0.2564878221 | O66: 0.252150805 | P66: 0.3808929531 | Q66: 0.2964706564 | R66: 0.3352442673 | S66: 0.1825988336
A67: Correlation with S&P | K67: =CORREL(K4:K63,$S$4:$S$63) -> 0.531546116 | L67: =CORREL(L4:L63,$S$4:$S$63) -> 0.7467134682 | M67: 0.6027081294 | N67: 0.7152580945 | O67: 0.7111413361 | P67: 0.5692511106 | Q67: 0.2426084136 | R67: 0.4837511501 | S67: 1
A68: Beta | K68: =K67*(K66/$S$66) -> 1.33504682 | L68: =L67*(L66/$S$66) -> 1.118714459 | M68: 0.6201815579 | N68: 1.004688734 | O68: 0.982015366 | P68: 1.18743221 | Q68: 0.3939032589 | R68: 0.8881480604 | S68: 1
A69: Expected Return from CAPM | K69: =$U$1+K68*$U$2 -> 0.1060976687 | L69: =$U$1+L68*$U$2 -> 0.09376672415 | M69: 0.0653503488 | N69: 0.08726725781 | O69: 0.08597487586 | P69: 0.09768363599 | Q69: 0.05245248576 | R69: 0.08062443944 | S69: =$U$1+S68*$U$2 -> 0.087
A71: =startDate -> 2019-09-01
A72: =endDate -> 2024-09-28

Sheet Correlation Matrix
C1: Correlation Matrix
C2: =Returns!K3 -> _1 | D2: =Returns!L3 -> _2 | E2: =Returns!M3 -> _3 | F2: =Returns!N3 -> _4 | G2: =Returns!O3 -> _5 | H2: =Returns!P3 -> _6 | I2: =Returns!Q3 -> _7 | J2: =Returns!R3 -> _8
C3: =Returns!B2 -> NFLX | D3: =Returns!C2 -> JPM | E3: =Returns!D2 -> KO | F3: =Returns!E2 -> GRMN | G3: =Returns!F2 -> HD | H3: =Returns!G2 -> LUV | I3: =Returns!H2 -> LLY | J3: =Returns!I2 -> XOM | M3: Stand Dev | N3: Expect Ret
A4: =C2 -> _1 | B4: =C3 -> NFLX | C4: =CORREL(_1,_1) -> 1 | D4: =TRANSPOSE(C5:C11) -> 0.4031957078 | E4: -0.0171321443 | F4: 0.3435056381 | G4: 0.3067815444 | H4: 0.1789158978 | I4: 0.2515868038 | J4: -0.02212199254 | L4: =B4 -> NFLX | M4: =Returns!K66 -> 0.4586205877 | N4: =Returns!K69 -> 0.1060976687
A5: =D2 -> _2 | B5: =D3 -> JPM | C5: =CORREL(_2,_1) -> 0.4031957078 | D5: =CORREL(_2,_2) -> 1 | E5: =TRANSPOSE(D6:D11) -> 0.4970292527 | F5: 0.6380161435 | G5: 0.4763047689 | H5: 0.6114117105 | I5: 0.09331340535 | J5: 0.5936840405 | L5: =B5 -> JPM | M5: =Returns!L66 -> 0.2735667214 | N5: =Returns!L69 -> 0.09376672415
A6: =E2 -> _3 | B6: =E3 -> KO | C6: =CORREL(_3,_1) -> -0.0171321443 | D6: =CORREL(_3,_2) -> 0.4970292527 | E6: =CORREL(_3,_3) -> 1 | F6: =TRANSPOSE(E7:E11) -> 0.4276139215 | G6: 0.4383542226 | H6: 0.3876798653 | I6: 0.08043749432 | J6: 0.4156964397 | L6: KO | M6: =Returns!M66 -> 0.1878926524 | N6: =Returns!M69 -> 0.0653503488
A7: =F2 -> _4 | B7: =F3 -> GRMN | C7: =CORREL(_4,_1) -> 0.3435056381 | D7: =CORREL(_4,_2) -> 0.6380161435 | E7: =CORREL(_4,_3) -> 0.4276139215 | F7: =CORREL(_4,_4) -> 1 | G7: =TRANSPOSE(F8:F11) -> 0.433875191 | H7: 0.5034821001 | I7: 0.1709946865 | J7: 0.2383415063 | L7: GRMN | M7: =Returns!N66 -> 0.2564878221 | N7: =Returns!N69 -> 0.08726725781
A8: =G2 -> _5 | B8: =G3 -> HD | C8: =CORREL(_5,_1) -> 0.3067815444 | D8: =CORREL(_5,_2) -> 0.4763047689 | E8: =CORREL(_5,_3) -> 0.4383542226 | F8: =CORREL(_5,_4) -> 0.433875191 | G8: =CORREL(_5,_5) -> 1 | H8: =TRANSPOSE(G9:G11) -> 0.3868750982 | I8: 0.04212612502 | J8: 0.259438416 | L8: HD | M8: =Returns!O66 -> 0.252150805 | N8: =Returns!O69 -> 0.08597487586
A9: =H2 -> _6 | B9: =H3 -> LUV | C9: =CORREL(_6,_1) -> 0.1789158978 | D9: =CORREL(_6,_2) -> 0.6114117105 | E9: =CORREL(_6,_3) -> 0.3876798653 | F9: =CORREL(_6,_4) -> 0.5034821001 | G9: =CORREL(_6,_5) -> 0.3868750982 | H9: =CORREL(_6,_6) -> 1 | I9: =TRANSPOSE(H10:H11) -> 0.008402948931 | J9: 0.3842187319 | L9: LUV | M9: =Returns!P66 -> 0.3808929531 | N9: =Returns!P69 -> 0.09768363599
A10: =I2 -> _7 | B10: =I3 -> LLY | C10: =CORREL(_7,_1) -> 0.2515868038 | D10: =CORREL(_7,_2) -> 0.09331340535 | E10: =CORREL(_7,_3) -> 0.08043749432 | F10: =CORREL(_7,_4) -> 0.1709946865 | G10: =CORREL(_7,_5) -> 0.04212612502 | H10: =CORREL(_7,_6) -> 0.008402948931 | I10: =CORREL(_7,_7) -> 1 | J10: =TRANSPOSE(I11) -> 0.1447884627 | L10: LLY | M10: =Returns!Q66 -> 0.2964706564 | N10: =Returns!Q69 -> 0.05245248576
A11: =J2 -> _8 | B11: =J3 -> XOM | C11: =CORREL(_8,_1) -> -0.02212199254 | D11: =CORREL(_8,_2) -> 0.5936840405 | E11: =CORREL(_8,_3) -> 0.4156964397 | F11: =CORREL(_8,_4) -> 0.2383415063 | G11: =CORREL(_8,_5) -> 0.259438416 | H11: =CORREL(_8,_6) -> 0.3842187319 | I11: =CORREL(_8,_7) -> 0.1447884627 | J11: =CORREL(_8,_8) -> 1 | L11: XOM | M11: =Returns!R66 -> 0.3352442673 | N11: =Returns!R69 -> 0.08062443944

Sheet Covar Matrix
D1: Var/Cov Matrix
C2: ='Correlation Matrix'!C3 -> NFLX | D2: ='Correlation Matrix'!D3 -> JPM | E2: ='Correlation Matrix'!E3 -> KO | F2: ='Correlation Matrix'!F3 -> GRMN | G2: ='Correlation Matrix'!G3 -> HD | H2: ='Correlation Matrix'!H3 -> LUV | I2: ='Correlation Matrix'!I3 -> LLY | J2: ='Correlation Matrix'!J3 -> XOM
B3: =C2 -> NFLX | C3: ='Correlation Matrix'!C4*'Correlation Matrix'!$M$4*'Correlation Matrix'!M4 -> 0.2103328435 | D3: ='Correlation Matrix'!D4*'Correlation Matrix'!$M$5*'Correlation Matrix'!M4 -> 0.05058627636 | E3: ='Correlation Matrix'!E4*'Correlation Matrix'!$M$6*'Correlation Matrix'!M4 -> -0.001476301523 | F3: ='Correlation Matrix'!F4*'Correlation Matrix'!$M$7*'Correlation Matrix'!M4 -> 0.04040677284 | G3: ='Correlation Matrix'!G4*'Correlation Matrix'!$M$8*'Correlation Matrix'!M4 -> 0.03547669343 | H3: ='Correlation Matrix'!H4*'Correlation Matrix'!$M$9*'Correlation Matrix'!M4 -> 0.03125398622 | I3: ='Correlation Matrix'!I4*'Correlation Matrix'!$M$10*'Correlation Matrix'!M4 -> 0.03420764049 | J3: ='Correlation Matrix'!J4*'Correlation Matrix'!$M$11*'Correlation Matrix'!M4 -> -0.003401254649
B4: =D2 -> JPM | C4: ='Correlation Matrix'!C5*'Correlation Matrix'!$M$4*'Correlation Matrix'!M5 -> 0.05058627636 | D4: ='Correlation Matrix'!D5*'Correlation Matrix'!$M$5*'Correlation Matrix'!M5 -> 0.07483875105 | E4: ='Correlation Matrix'!E5*'Correlation Matrix'!$M$6*'Correlation Matrix'!M5 -> 0.02554788854 | F4: ='Correlation Matrix'!F5*'Correlation Matrix'!$M$7*'Correlation Matrix'!M5 -> 0.0447673805 | G4: ='Correlation Matrix'!G5*'Correlation Matrix'!$M$8*'Correlation Matrix'!M5 -> 0.03285553584 | H4: ='Correlation Matrix'!H5*'Correlation Matrix'!$M$9*'Correlation Matrix'!M5 -> 0.0637088779 | I4: ='Correlation Matrix'!I5*'Correlation Matrix'!$M$10*'Correlation Matrix'!M5 -> 0.007568137594 | J4: ='Correlation Matrix'!J5*'Correlation Matrix'!$M$11*'Correlation Matrix'!M5 -> 0.05444775782
B5: =E2 -> KO | C5: ='Correlation Matrix'!C6*'Correlation Matrix'!$M$4*'Correlation Matrix'!M6 -> -0.001476301523 | D5: ='Correlation Matrix'!D6*'Correlation Matrix'!$M$5*'Correlation Matrix'!M6 -> 0.02554788854 | E5: ='Correlation Matrix'!E6*'Correlation Matrix'!$M$6*'Correlation Matrix'!M6 -> 0.03530364884 | F5: ='Correlation Matrix'!F6*'Correlation Matrix'!$M$7*'Correlation Matrix'!M6 -> 0.02060764588 | G5: ='Correlation Matrix'!G6*'Correlation Matrix'!$M$8*'Correlation Matrix'!M6 -> 0.02076803231 | H5: ='Correlation Matrix'!H6*'Correlation Matrix'!$M$9*'Correlation Matrix'!M6 -> 0.02774507998 | I5: ='Correlation Matrix'!I6*'Correlation Matrix'!$M$10*'Correlation Matrix'!M6 -> 0.004480743112 | J5: ='Correlation Matrix'!J6*'Correlation Matrix'!$M$11*'Correlation Matrix'!M6 -> 0.02618469155
B6: =F2 -> GRMN | C6: ='Correlation Matrix'!C7*'Correlation Matrix'!$M$4*'Correlation Matrix'!M7 -> 0.04040677284 | D6: ='Correlation Matrix'!D7*'Correlation Matrix'!$M$5*'Correlation Matrix'!M7 -> 0.0447673805 | E6: ='Correlation Matrix'!E7*'Correlation Matrix'!$M$6*'Correlation Matrix'!M7 -> 0.02060764588 | F6: ='Correlation Matrix'!F7*'Correlation Matrix'!$M$7*'Correlation Matrix'!M7 -> 0.06578600287 | G6: ='Correlation Matrix'!G7*'Correlation Matrix'!$M$8*'Correlation Matrix'!M7 -> 0.02806027524 | H6: ='Correlation Matrix'!H7*'Correlation Matrix'!$M$9*'Correlation Matrix'!M7 -> 0.04918738367 | I6: ='Correlation Matrix'!I7*'Correlation Matrix'!$M$10*'Correlation Matrix'!M7 -> 0.01300262627 | J6: ='Correlation Matrix'!J7*'Correlation Matrix'!$M$11*'Correlation Matrix'!M7 -> 0.02049404992
B7: =G2 -> HD | C7: ='Correlation Matrix'!C8*'Correlation Matrix'!$M$4*'Correlation Matrix'!M8 -> 0.03547669343 | D7: ='Correlation Matrix'!D8*'Correlation Matrix'!$M$5*'Correlation Matrix'!M8 -> 0.03285553584 | E7: ='Correlation Matrix'!E8*'Correlation Matrix'!$M$6*'Correlation Matrix'!M8 -> 0.02076803231 | F7: ='Correlation Matrix'!F8*'Correlation Matrix'!$M$7*'Correlation Matrix'!M8 -> 0.02806027524 | G7: ='Correlation Matrix'!G8*'Correlation Matrix'!$M$8*'Correlation Matrix'!M8 -> 0.06358002848 | H7: ='Correlation Matrix'!H8*'Correlation Matrix'!$M$9*'Correlation Matrix'!M8 -> 0.03715643798 | I7: ='Correlation Matrix'!I8*'Correlation Matrix'!$M$10*'Correlation Matrix'!M8 -> 0.003149151732 | J7: ='Correlation Matrix'!J8*'Correlation Matrix'!$M$11*'Correlation Matrix'!M8 -> 0.02193087721
B8: =H2 -> LUV | C8: ='Correlation Matrix'!C9*'Correlation Matrix'!$M$4*'Correlation Matrix'!M9 -> 0.03125398622 | D8: ='Correlation Matrix'!D9*'Correlation Matrix'!$M$5*'Correlation Matrix'!M9 -> 0.0637088779 | E8: ='Correlation Matrix'!E9*'Correlation Matrix'!$M$6*'Correlation Matrix'!M9 -> 0.02774507998 | F8: ='Correlation Matrix'!F9*'Correlation Matrix'!$M$7*'Correlation Matrix'!M9 -> 0.04918738367 | G8: ='Correlation Matrix'!G9*'Correlation Matrix'!$M$8*'Correlation Matrix'!M9 -> 0.03715643798 | H8: ='Correlation Matrix'!H9*'Correlation Matrix'!$M$9*'Correlation Matrix'!M9 -> 0.1450794417 | I8: ='Correlation Matrix'!I9*'Correlation Matrix'!$M$10*'Correlation Matrix'!M9 -> 0.0009488911079 | J8: ='Correlation Matrix'!J9*'Correlation Matrix'!$M$11*'Correlation Matrix'!M9 -> 0.04906172708
B9: =I2 -> LLY | C9: ='Correlation Matrix'!C10*'Correlation Matrix'!$M$4*'Correlation Matrix'!M10 -> 0.03420764049 | D9: ='Correlation Matrix'!D10*'Correlation Matrix'!$M$5*'Correlation Matrix'!M10 -> 0.007568137594 | E9: ='Correlation Matrix'!E10*'Correlation Matrix'!$M$6*'Correlation Matrix'!M10 -> 0.004480743112 | F9: ='Correlation Matrix'!F10*'Correlation Matrix'!$M$7*'Correlation Matrix'!M10 -> 0.01300262627 | G9: ='Correlation Matrix'!G10*'Correlation Matrix'!$M$8*'Correlation Matrix'!M10 -> 0.003149151732 | H9: ='Correlation Matrix'!H10*'Correlation Matrix'!$M$9*'Correlation Matrix'!M10 -> 0.0009488911079 | I9: ='Correlation Matrix'!I10*'Correlation Matrix'!$M$10*'Correlation Matrix'!M10 -> 0.08789485011 | J9: ='Correlation Matrix'!J10*'Correlation Matrix'!$M$11*'Correlation Matrix'!M10 -> 0.01439053805
B10: =J2 -> XOM | C10: ='Correlation Matrix'!C11*'Correlation Matrix'!$M$4*'Correlation Matrix'!M11 -> -0.003401254649 | D10: ='Correlation Matrix'!D11*'Correlation Matrix'!$M$5*'Correlation Matrix'!M11 -> 0.05444775782 | E10: ='Correlation Matrix'!E11*'Correlation Matrix'!$M$6*'Correlation Matrix'!M11 -> 0.02618469155 | F10: ='Correlation Matrix'!F11*'Correlation Matrix'!$M$7*'Correlation Matrix'!M11 -> 0.02049404992 | G10: ='Correlation Matrix'!G11*'Correlation Matrix'!$M$8*'Correlation Matrix'!M11 -> 0.02193087721 | H10: ='Correlation Matrix'!H11*'Correlation Matrix'!$M$9*'Correlation Matrix'!M11 -> 0.04906172708 | I10: ='Correlation Matrix'!I11*'Correlation Matrix'!$M$10*'Correlation Matrix'!M11 -> 0.01439053805 | J10: ='Correlation Matrix'!J11*'Correlation Matrix'!$M$11*'Correlation Matrix'!M11 -> 0.1123887188
D12: Weighted Var/Cov Matrix
C13: =C2 -> NFLX | D13: =D2 -> JPM | E13: KO | F13: GRMN | G13: HD | H13: LUV | I13: LLY | J13: XOM
B14: Weights | C14: =B15 -> 0.05031201071 | D14: =B16 -> 0.0005471474591 | E14: =B17 -> 0.519169283 | F14: =B18 -> 0.0750243776 | G14: =B19 -> 0.1335969474 | H14: =B20 -> -0.01840251814 | I14: =B21 -> 0.2045587924 | J14: =B22 -> 0.035193922
A15: =B3 -> NFLX | B15: 0.05031201071 | C15: =C3*$B$15*C14 -> 0.0005324151947 | D15: =D3*B15*$D$14 -> 1.392543509e-06 | E15: =E3*B15*$E$14 -> -3.856166088e-05 | F15: =F3*B15*$F$14 -> 0.0001525205074 | G15: =G3*B15*$G$14 -> 0.0002384576963 | H15: =H3*B15*$H$14 -> -2.893705602e-05 | I15: =I3*B15*$I$14 -> 0.0003520569682 | J15: =J3*B15*$J$14 -> -6.022523311e-06
A16: =B4 -> JPM | B16: 0.0005471474591 | C16: =C4*B16*$C$14 -> 1.392543509e-06 | D16: 2.240450249e-08 | E16: 7.25718825e-06 | F16: 1.837674e-06 | G16: 2.40164867e-06 | H16: -6.414777499e-07 | I16: 8.470548962e-07 | J16: 1.048460453e-06
A17: KO | B17: 0.519169283 | C17: =C5*B17*$C$14 -> -3.856166088e-05 | D17: 7.25718825e-06 | E17: 0.009515630576 | F17: 0.0008026750677 | G17: 0.001440458912 | H17: -0.0002650771086 | I17: 0.0004758577933 | J17: 0.0004784362953
A18: GRMN | B18: 0.0750243776 | C18: 0.0001525205074 | D18: 1.837674e-06 | E18: 0.0008026750677 | F18: 0.0003702868609 | G18: 0.0002812489196 | H18: -6.790994493e-05 | I18: 0.0001995499542 | J18: 5.41125323e-05
A19: HD | B19: 0.1335969474 | C19: 0.0002384576963 | D19: 2.40164867e-06 | E19: 0.001440458912 | F19: 0.0002812489196 | G19: 0.001134785526 | H19: -9.13498551e-05 | I19: 8.606137339e-05 | J19: 0.0001031146104
A20: LUV | B20: -0.01840251814 | C20: -2.893705602e-05 | D20: -6.414777499e-07 | E20: -0.0002650771086 | F20: -6.790994493e-05 | G20: -9.13498551e-05 | H20: 4.913154085e-05 | I20: -3.572002733e-06 | J20: -3.177516057e-05
A21: LLY | B21: 0.2045587924 | C21: 0.0003520569682 | D21: 8.470548962e-07 | E21: 0.0004758577933 | F21: 0.0001995499542 | G21: 8.606137339e-05 | H21: -3.572002733e-06 | I21: 0.003677898437 | J21: 0.0001036007383
A22: XOM | B22: 0.035193922 | C22: -6.022523311e-06 | D22: 1.048460453e-06 | E22: 0.0004784362953 | F22: 5.41125323e-05 | G22: 0.0001031146104 | H22: -3.177516057e-05 | I22: 0.0001036007383 | J22: 0.0001392060321
A23: Sum | B23: =SUM(B15:B22) -> 0.9999999625
A25: Port. Var | B25: =SUM(C15:J22) -> 0.02391755487
A26: Port. S.D. | B26: =SQRT(B25) -> 0.1546530144
A27: Port. E(R.) | B27: =SUMPRODUCT('Correlation Matrix'!N4:N11,B15:B22) -> 0.06911982017
A29: Sharpe | B29: =(B27-Returns!U1)/'Covar Matrix'!B26 -> 0.2529521996
... 20 more rows

Sheet Efficient Frontier
D1: Efficient Frontier
A2: Expect. Ret. | B2: Stand. Dev. | C2: ='Covar Matrix'!C13 -> NFLX | D2: ='Covar Matrix'!D13 -> JPM | E2: ='Covar Matrix'!E13 -> KO | F2: ='Covar Matrix'!F13 -> GRMN | G2: ='Covar Matrix'!G13 -> HD | H2: ='Covar Matrix'!H13 -> LUV | I2: ='Covar Matrix'!I13 -> LLY | J2: ='Covar Matrix'!J13 -> XOM
A3: 0.01999992022 | B3: 0.3576846303 | C3: -0.1723629729 | D3: -0.4435121321 | E3: 1.55686414 | F3: -0.2261820625 | G3: -0.1865003352 | H3: -0.1703917122 | I3: 0.753172498 | J3: -0.1110874227
A4: 0.02999991969 | B4: 0.2993385913 | C4: -0.1232159145 | D4: -0.3727682732 | E4: 1.347157174 | F4: -0.1582819561 | G4: -0.1205987383 | H4: -0.1363840566 | I4: 0.6384679085 | J4: -0.074376144
A5: 0.03999991915 | B5: 0.244991762 | C5: -0.07406893529 | D5: -0.3020242595 | E5: 1.137450375 | F5: -0.09038197155 | G5: -0.05469721117 | H5: -0.1023762512 | I5: 0.5237632783 | J5: -0.03766502454
A6: 0.05000000227 | B6: 0.1979653272 | C6: -0.02492148332 | D6: -0.2312797724 | E6: 0.9277416509 | F6: -0.02248134604 | G6: 0.01120495374 | H6: -0.06836825493 | I6: 0.4090577585 | J6: -0.000953506466
A7: 0.06000000173 | B7: 0.1646568028 | C7: 0.02422551221 | D7: -0.1605356906 | E7: 0.7180348428 | F7: 0.04541863369 | G7: 0.07710642125 | H7: -0.03436046921 | I7: 0.2943531552 | J7: 0.03575759472
A8: 0.07000000119 | B8: 0.1542255764 | C8: 0.07337407233 | D8: -0.08979367301 | E8: 0.5083309214 | F8: 0.1133180655 | G8: 0.1430065256 | H8: -0.0003528619498 | I8: 0.1796469424 | J8: 0.07247000775
A9: 0.08000000066 | B9: 0.1709130417 | C9: 0.12251943 | D9: -0.01904752133 | E9: 0.2986209168 | F9: 0.1812185973 | G9: 0.2089096213 | H9: 0.0336550069 | I9: 0.06494404656 | J9: 0.1091799025
A10: 0.09000000012 | B10: 0.2083004711 | C10: 0.171649763 | D10: 0.05161695568 | E10: 0.08897028587 | F10: 0.2488961151 | G10: 0.2750501381 | H10: 0.06772208523 | I10: -0.04981436788 | J10: 0.1459090249
A11: 0.1000000832 | B11: 0.2575251373 | C11: 0.2208139008 | D11: 0.12244089 | E11: -0.1207946374 | F11: 0.3170192557 | G11: 0.3407133161 | H11: 0.1016707192 | I11: -0.1644661349 | J11: 0.1826026903
A12: 0.1100000827 | B12: 0.3130514818 | C12: 0.2699608413 | D12: 0.1931848706 | E12: -0.3305016629 | F12: 0.3849193451 | G12: 0.4066149612 | H12: 0.1356785237 | I12: -0.2791706463 | J12: 0.2193137673
A13: 0.1200000822 | B13: 0.3720689962 | C13: 0.3191078898 | D13: 0.2639284834 | E13: -0.5402086037 | F13: 0.4528195886 | G13: 0.4725164731 | H13: 0.1696863234 | I13: -0.3938752695 | J13: 0.256025115
A14: 0.1300000816 | B14: 0.433153011 | C14: 0.3681452978 | D14: 0.3350063419 | E14: -0.7502344752 | F14: 0.5208489976 | G14: 0.538506502 | H14: 0.2034000383 | I14: -0.5084809996 | J14: 0.2928082972
A15: 0.06911982017 | B15: 0.1546530144 | C15: 0.05031201071 | D15: 0.0005471474591 | E15: 0.519169283 | F15: 0.0750243776 | G15: 0.1335969474 | H15: -0.01840251814 | I15: 0.2045587924 | J15: 0.035193922 | K15: MVP
A16: 0.08277207102 | B16: 0.1796236664 | C16: 0.1361418232 | D16: 0.0005672205422 | E16: 0.240485198 | F16: 0.2000409458 | G16: 0.2271795994 | H16: 0.04308271905 | I16: 0.03315006043 | J16: 0.1193524031 | K16: MVE
